{"text_format":"1","workbook":"xlsx","n_sheets":6,"sheets":["Llenado Tabla Perfil","Políticas","Requisitos de Crédito","No Aplica a","Tabla Perfil  Jul 09","Hoja1"],"not_rendered":{"charts":3,"images":0,"macros":1,"external_links":1,"defined_names":6,"comments":3,"pivot_tables":0},"unopened":[],"bounds":{"document_bytes":16777216,"sheet_cells":100000,"rows_first":2000,"rows_last":500,"rows_between":2000,"halvings":0,"cell_chars":16384,"cell_head_chars":4096},"cells_cut":0,"cells_raw":0,"read":"whole","date_system":"1900"}

{"sheet":"Llenado Tabla Perfil","index":0,"n_rows":27,"n_cols":2,"rows_kept":27,"cut":false,"hidden":false,"merged":[]}
[null,"TABLA PERFIL PARA CLIENTES CONAUTO"]
[]
[null,"De acuerdo a las necesidades que se presentan en el mercado del Autofinanciamiento, el Corporativo Conauto, ha tomado la decisión de reestructurar la forma de Evaluar a nuestros Clientes, por tal motivo, se hace la presentación de la \"Tabla Perfil para clientes Conauto\". Dicha Tabla se compone de 5 características, asignándole un peso específico a efecto de obtener el resultado que permita medir la capacidad económica del cliente, su comportamiento crediticio, el porcentaje cubierto del plan, el tipo de Vivienda habitada y su antigüedad laboral, todo ello, con el propósito de otorgar el crédito a nuestros clientes con el menor riesgo posible."]
[]
[null,"LLENADO DE TABLA PERFIL PARA CLIENTES CONAUTO"]
[null,"1. Tipo de Plan: Esta nueva Tabla ya considera su aplicación para todos los tipos de planes en Conauto, por lo que opera para planes de entrega Inmediata que se tienen, como para el nuevo Plan de Entrega Inmediata Especial, sólo para los catálogos participantes. Por lo Anterior se deja sin efecto la Tabla Perfil de Entregas Inmediatas."]
[null,"2. Nombre Cliente: En esta casilla, se deberá escribir el nombre de nuestro cliente como aparece en el Estado de Cuenta."]
[null,"3. Pago Real del Cliente: Es la cantidad que el cliente ha pagado, sin contar los abonos que aplica el Corporativo (abonos 28, SVB 21, etc.), esta cantidad debe coincidir con la que se refleja en el Estado de Cuenta."]
[null,"4. Tipo de Cliente: Esta información es de acuerdo a los Ingresos que percibe el cliente y sólo se podrá catalogar como Informal o Ingresos Comprobables."]
[null,"5. Gpo. Int.: Casilla para indicar el número de Grupo y de Integrante que le ha sido asignado a nuestro cliente."]
[null,"6. Antigüedad Empleo: Es el tiempo que el cliente lleva laborando en su empresa actual, o bien desarrollando la actividad informal manifestada; esta información debe coincidir con la Investigación de Crédito. Sólo se podrán anotar números en esta casilla, no anotar letras. Es necesario aclarar que se deben anotar los años y los meses laborados, es decir, indicar si el cliente tiene 3 años 9 meses, se deberá ingresar de la siguiente forma: 3.75"]
[null,"7. Catálogo Contratado: En esta casilla, debe ser indicado el Automóvil que el cliente contrató, el cual debe coincidir con el que aparece en el Estado de Cuenta al momento del llenado de la tabla."]
[null,"8. Monto Total de Autofinanciamiento: Para efectos del cálculo del porcentaje del Plan Pagado, ahora se sustituye la aportación real por el Monto total de Autofinanciamiento, ésta se ecuentra reflejada en el Edo. de Cta. en la columna de cargos al final de éstos."]
[null,"9. Domicilio: En esta casilla se indica qué tipo de vivienda habita el cliente, los cuales son.                                                                                                                                                      -Propio, es aquel en el cual el inmueble esta a nombre del cliente, e inscrito ante el Registro Público de la Propiedad.                                                                                                                                                                                        -Familiar, es cuando el Inmueble en que habita el cliente, es propiedad de un familiar, ya sea de padres, hermanos, suegros o cónyuge en caso de estar casado por separación de bienes.                                                                                                                                                                 -Crédito Hipotecario, es cuando el cliente se encuentra pagando su crédito de vivienda y en el Registro Público de la Propiedad, aparece efectado.                                                                                                                                                                                                                                                   -Renta, es cuando el Inmueble habitado por el cliente es arrendando."]
[null,"10. Ingreso Neto del Cliente: Es el total de percepciones del cliente, después de todas las deducciones realizadas por concepto de Impuestos y otros descuentos."]
[null,"11. Buró de Crédito: Es el comportamiento crediticio del cliente, mismo que se califica de acuerdo a la continuidad en sus pagos de los créditos solicitados. La calificación en la Tabla puede ser:                                                                                 Historial de pagos Mop 1111, ésta opera a partir de 3 cuentas reportadas en Buró de Crédito, y cuya clave MOP es exclusivamente 1, si aparece en cualquiera de las cuentas retraso como 2345678 etc. no opera, sin excepción.                                                                                                                                                                         -Puntual, es cuando el cliente ha tenido un comportamiento adecuado, con algunos atrasos pero al corriente.                                                                                                                                                                                                                 -Sin Historial, es cuando el cliente no ha solicitado ningún crédito con anterioridad.                                                                                                                                                                 -Adeudo Menor, se califica de esta manera al cliente cuando su reporte refleje una cuenta con adeudos menores a $1,000 Hasta 60 días.                                                                                                                                                                                                                                                                                                                                   -Ocasionalmente Moroso, es aquel cliente que tenga adeudo en una cuenta menor a $2,000 hasta 30 días.                                                                                                                                                                                                                                                                                                              -Moroso, es aquel cliente cuyo comportamiento en Buró de Crédito no es adecuado y se considera así cuando presenta adeudos o atrasos de 60 días o más, mayores a $2,000 y/o cuentas irrecuperables, en estos casos el Crédito No se Autoriza."]
[null,"12. Mensualidad Como Adjudicado y/o Pago Mínimo Requerido: Es la cantidad que paga el cliente en su calidad de Adjudicado, la cual se toma del cargo generado en el mes, del estado de cuenta al momento de la evaluación de crédito. Para el caso de los clientes que hayan contratado el Plan Conauto Ahorro, si éste realizó su pago anticipado del 30%, (enganche)  se tomará la cantidad de Pago Mínimo Requerido, en caso contrario, se tomará la cantidad de la columna de Cargo Normal."]
[null,"13. Seguro Automotriz: Es la cantidad que se se cobra al cliente, a efecto de contar con un seguro de Robo y daños de la unidad una vez entregada. Para efectos de la Tabla Perfil, se tomará únicamente de forma Mensual, pues se toma en cuenta para la Aportación Total. Ésta deberá tomarse del cotizador depediendo de la unidad que se le entregará al cliente. En planes con seguro incluido, no se deberá llenar éste dato."]
[null,"14. Porcentaje de Ingresos: Es la cantidad de veces que el cliente cubre la mensualidad de acuerdo a sus Ingresos, y que resulta de dividir sus Ingresos Netos menos el pago a realizar a los créditos registrados en Buró de forma mensual, menos el 35% de gastos personales, y el resultado se divide entre la Aportación Total, esta última se obtiene sumando la Mensualidad como Adjudicado más la cantidad de Seguro Automotriz Mensual. Si el cliente tiene un porcentaje de ingresos menor al 1.3, el crédito no se Autorizará, por lo tanto no se debe aplicar la tabla."]
[null,"15. Pagos Buró de Crédito: Es la cantidad que el cliente debe pagar de forma mensual respecto de los créditos solicitados y que se encuentran activos, esta cantidad aparece en el reporte de Buró de Crédito del cliente y se toma en cuenta para obtener el procentaje de ingresos contra su Aportación Total."]
[null,"16. Aportación Total: Se obtiene de forma Automáticas de la suma de los conceptos de Mensualidad como Adjudicado más Seguro Aut. Mensual ."]
[null,"17. Porcentaje Pagado/ Plazo: Es el porcentaje que el cliente ha cubierto de su plan de acuerdo al Monto total del Autofinanciamiento y de las mensualidades que ha pagado hasta el momento de la revisión en el Departamento de Evaluación de Crédito, si el cliente realizó pagos Anticipados (Subasta), también son tomados en cuenta. Este se obtiene de forma automática."]
[null,"18. Plazo de Plan: Es el plazo que el cliente ha elegido de acuerdo a sus necesidades, para pagar su Financiamiento y  éste únicamente puede ser a 48 ó 60 meses."]
[null,"19. Inmovilizador: El cliente en lugar de presentar un coobligado y/o en su caso aval, tendrá la opción de contratar a su cuenta y costo un equipo de inmvovilización y localización de la unidad, el cual será de acuerdo a las políticas que para tal efecto fije Conauto y con la empresa que Conauto establezca. En caso de que el cliente a pesar de la contratación requiera de un coobligado, la opción será adelantar más pagos al sistema, adicional a la contratación del Inmovilizador. Ya opera también para planes de entrega inmediata, en los mismos términos y condiciones que en los planes actuales. Para la Entrega Inmediata Especial, es obligatorio, por lo tanto de forma automática se aplica en la Tabla."]
[null,"20. Mens. Pagadas: Es el número de mensualidades que el cliente ha cubierto al  momento en que se realiza la verificación de datos en el departamento de Evaluación de Crédito. Éste se caulcula de forma Automática."]
[null,"21. Resultado: Es la calificación que obtiene el cliente de acuerdo a las 5 características principales conforme a la Tabla Perfil. Con esto, se determinará si el cliente es Excelente o necesita presentar Coobligado o Aval. También se determinará si el crédito No se Autoriza."]
[null,"Buscador (Solver): Si el cliente no quiere presentar coobligado y/o Aval, o bien no contratar el equipo inmovilizador, tendrá la opción de acuerdo a la Tabla, de anticipar sus aportaciones mensuales a través del pago de la cantidad indicada en el buscador, el cual calcúla de forma automática la cantidad a pagar a efecto de que el cliente resulte excelente."]

{"sheet":"Políticas","index":1,"n_rows":40,"n_cols":2,"rows_kept":40,"cut":false,"hidden":false,"merged":[[3,1,4,1]]}
[]
[null,"Políticas de Evaluación de Crédito 2009"]
[]
[null,"Recepción del sobre de investigación de crédito (sobre amarillo)\n\na) Al momento de recibirse el sobre de investigación, el cliente debe estar adjudicado y al corriente en todos sus pagos.\n\nb)  El sobre de investigación debe contener un informe en original de una Agencia Investigadora, previamente autorizada por el Corporativo Conauto, con nombre, fecha y firma del Titular responsable de la Agencia Investigadora. (Respetando los formatos de investigación). Asimismo deberán indicar en dicho sobre el número de documentos que se anexan.\n\nc)  Para acortar los tiempos de respuesta, el Gerente de Autofinanciamiento, deberá revisar que se encuentren los documentos requeridos al cliente por la Agencia Investigadora, verificando que la información proporcionada concuerde con la documentación del cliente y/o coobligado o en su caso aval cuando así se requiera, puesto que la falta de algún documento será motivo de devolución.\n\nd)  El reporte de buró de crédito, el Formato de autorización de buró de Conauto, el informe de la Agencia Investigadora y la Tabla de precalificación deberán presentarse en original y el resto de la documentación en fotocopias.\n\ne)  Los comprobantes de ingresos, comprobante de domicilio y el reporte de buró de crédito deben ser actuales, es decir, del mes en que se realizó la investigación, por lo que toda la información y documentación tendrá una vigencia de 30 días naturales.\n                                                                                                                                                                                                                                                 f) Para el caso de que el cliente haya contratado el Plan Conauto Ahorro, será motivo de devolución del sobre de Investigación si en el Estado de Cuenta no se ve reflejado el pago extraordinario y/o Enganche del 30% que se requiere para este Plan. En caso de que el cliente resulte Adjudicado por Sorteo y no esté dispuesto a realizar el pago de la Aportación Extraordinaria, se tomará como un Plan Clásico, calculando sus ingresos sobre la aportación real, no así sobre el Pago Mínimo Requerido.                                                                                                                                                         "]
[]
[null,"g) Así mismo Conauto para la autorización del crédito, valorará a favor del cliente, si la unidad entregada es de mayor valor que al catálogo contratado,  reduciendo de ésta forma el riesgo en el monto total del financiamiento, por lo que al momento de la entrega del sobre de investigación al área de Crédito, deberán anexar una carta membretada por la Distribuidora en donde se detalle la unidad a entregar y sobre todo se pueda valorar a cuanto asciende dicha diferencia. "]
[]
[null,"Agencias  Investigadoras.\n\nTodas las Distribuidoras deben contar con una Agencia Investigadora  previamente autorizada por el Corporativo Conauto, debiendo utilizar los formatos elaborados por dicha Corporación, anexando croquis de localización y fotografías legibles de los inmuebles donde habitan el cliente, coobligado y/o aval cuando se requiera, y al final de cada hoja de investigación, no deben omitir el nombre del Titular responsable de la Agencia, la firma y la fecha en que se realizó la investigación.\n\nLas visitas socioeconómicas las deben realizar en el lugar donde habita el cliente y/o coobligado y/o aval y verificar en forma telefónica los ingresos y antigüedad laboral del cliente y/o coobligado, haciéndose la aclaración que para el caso de que se requiera la visita al lugar donde labora el cliente, se deberán constituir en el domicilio de la Empresa.\n\nLas analistas realizarán llamadas telefónicas a los domicilios y empleos de los clientes, por lo que será necesario que dentro del reporte de investigación se indiquen los horarios de trabajo matutino, vespertino o nocturno, a efecto de tenerlos localizados. \n  \nTodas las aclaraciones, omisiones o correcciones que se realicen a la investigación después de haberse analizado, deben ser realizadas por la Agencia Investigadora en hoja aparte, con nombre, fecha y firma del titular responsable de la Agencia. (Favor de no cambiar los formatos iníciales de investigación).\n\nPara el caso de no ser fidedigna la información proporcionada, se sancionará a la Agencia Investigadora y ya no podrá prestar sus servicios, a ninguna Distribuidora Ford que comercialice Conauto.\n"]
[]
[null,"Aspectos Importantes:\n\nAcreditación de Ingresos.-  Los clientes deben comprobar ingresos mínimos de 1.3 veces la mensualidad como adjudicado, considerando el cargo mensual de Seguro Automotriz y deduciendo lo que mensualmente tenga que pagar en créditos de acuerdo con su reporte de Buró.\n\nLos ingresos se podrán acreditar a través de: \n\na) Recibos de nómina.- Deberán anexar los recibos de pago de nómina de los últimos 2 meses y/o estados de cuenta bancarios donde indique forzosamente “pago de nómina”. Cuando el cliente trabaje en Empresas Gubernamentales, Paraestatales del Gobierno Federal, Estatal, Municipal, en Comisión Federal de Electricidad (CFE), Petróleos Mexicanos (PEMEX), Secretaria de Educación Pública (SEP) y/o empresas legalmente constituidas, será  forzoso  presentar recibos de nómina sin excepción.                                                                                                                                                                                               Nota: Para los Planes Empresariales, al momento de la Evaluación de Crédito, deberán presentar los originales de los Recibos de Nómina.                                                                                                                                                                                                                       Con relación a éste punto, los recibos de nómina deberán contener todos los datos legales y fiscales aplicables, y tener así mismo, el Númer de Seguridad Social del trabajador, ya que éste dato será corroborado por las analistas.                                                                                             En caso de que los clientes con Ingresos Acreditables, completen ingresos con una actividad informal, los ingresos obtenidos por esta actividad no podrán ser igual o mayor a los obtenidos por recibos de nómina, en caso de serlo, se deberá tomar como un cliente Informal, para efecto del llenado de la tabla, complementando ingresos con acreditables. Por lo anterior dichos clientes no calificarán para un plan Empresarial o bien Conauto ahorro con anualidades.\n"]
[null,"b) Declaraciones fiscales.- Las declaraciones fiscales, deberán desprender ingresos mínimos de 1.3 veces la mensualidad como adjudicado de acuerdo con la política, considerando el cargo mensual de Seguro Automotriz y deduciendo lo que mensualmente tenga que pagar en créditos de acuerdo con su reporte de Buró. Las declaraciones fiscales, nunca podrán ser presentadas en ceros. Salvo que se trate de clientes con Régimen de Pequeño Contribuyente que presenten Recibos de Pagos de más de $200 Bimestrales"]
[null,"c) Constancias de Ingresos.- De forma excepcional, podrán presentar una constancia de ingresos, la cual se deberá presentar en original, desglosándose las percepciones con sus respectivas deducciones, indicando el monto del ingreso neto mensual, es decir, ingresos brutos, menos descuentos por Impuestos, IMSS y demás; si adicionalmente a su sueldo reciben comisiones, se deberán indicar en el mismo documento. Se debe indicar la antigüedad en el empleo y la actividad específica que desarrolla y el número de Seguridad Social del Trabajador. Esta carta debe contener el membrete de la Empresa, dentro de la misma debe venir la dirección, el número telefónico y la extensión, asimismo dicha constancia deberá contener el nombre completo del Gerente de Recursos Humanos y su firma autógrafa. Si se omite algún requisito no se aceptará dicha constancia.                                 "]
[null,"Cuando el cliente trabaje en una pequeña empresa y/o negocio y a sus empleados no les den recibos de nómina, la carta de comprobación de ingresos netos deberá ir en original con membrete del negocio, firmada por el propietario anexando la hoja completa de su Inscripción del Registro Federal de Contribuyentes, (no cédula fiscal). Si la carta  de ingresos netos rebasa la cantidad de más $7,000 será forzoso que la información de la Agencia Investigadora sea más detallada, debiendo anexar una fotografía del negocio donde labora el cliente. Lo mismo, se realizará cuando los negocios sean familiares."]
[null,"d) Comprobación de Ingresos con Estados de Cuenta.- Los estados de  cuenta bancarios de cheques o cuentas maestras, seguirán siendo válidos como forma de acreditar sus ingresos, siempre y cuando se cumplan con los siguientes requisitos:\n\n1) Todos aquellos clientes con estados de cuenta bancarios, deberán Domiciliar su pago a Conauto. \n \n2) Deberán tener 3 pagos realizados como mínimo (antigüedad), dentro del sistema de autofinanciamiento, no aplica pagos anticipados.\n\n3) Deberán enviar los últimos 6 meses detallados y completos de los estados de cuenta bancarios.  \n\n4) Deberán reflejar flujos constantes (entradas y salidas de capital) así como, saldos disponibles que garanticen la equivalencia como mínimo de 1.3 veces la mensualidad como adjudicado, considerando el cargo mensual de Seguro Automotriz. y deduciendo lo que mensualmente tenga que pagar en créditos de acuerdo con su reporte de Buró.  \n\n5) Si no se cumplen estos requisitos, será indispensable efectuar la investigación para Clientes con ingresos variables No Comprobables (Informales), para la acreditación de sus ingresos.\n\n6) Es obligatorio el domiciliar pagos cuando se acrediten ingresos con esatdos de cuenta, por lo que las cuentas bancarias para realizar la domiciliación deberán ser de cheques o ahorro, sin importar de que banco sea (excepto Banco Azteca), y éstas deberán ser invariablemente de los clientes titulares del contrato.\n\n7) No aplica para tarjeta de crédito.\n\n8) Deberán anexar el formato de domiciliación con firma en original, anotando su clabe de 18 dígitos.                                                                                                                             .                                                                                                                                                                                                                                                                                                                                                                                                                                9) Tratándose del Plan Conauto Ahorro, aún pagando el 30% de pago adicional también deberán contar con una antigüedad de 3 meses en el sistema.\n"]
[null,"e) Ingresos Mancomunados.- Para aquellos clientes que no cubran el mínimo de 1.3 veces el monto de su mensualidad como adjudicado pero si alcancen .8 veces, o bien que deseen obtener una mejor calificación, considerando el cargo mensual de Seguro Automotriz y deduciendo lo que mensualmente tenga que pagar en créditos de acuerdo con su reporte de Buró, se podrán mancomunar los mismos con su cónyuge, para lo cual se deberán anexar los comprobantes de ingresos del cónyuge solamente con recibos de nómina y/o declaraciones fiscales, así como su buró de crédito. Así mismo, se podrán sumar los ingresos de los padres en caso de que uno de los hijos sea deudor principal del crédito, pudiéndose mancomunar de igual forma los ingresos entre hermanos, mismos que firmarán como obligados solidarios."]
[null,"Para cualquiera persona que intervenga en esta operación, la información  que proporcionen deberá ser corroborada por la Agencia Investigadora."]
[null,"f) Clientes sin ingresos.- Para aquellos clientes que no perciban ingresos como lo son los Estudiantes y Amas de Casa, será necesario presentar un obligado solidario al pago que compruebe ingresos de mínimo 1.3 la mensualidad del cliente como adjudicado, considerando el monto del seguro automotriz de forma mensual y deduciendo además, la cantidad que el cliente tenga que pagar mensualmente en créditos de acuerdo a su reporte con Buró y presentar lo que resulte de la Tabla, es decir, un coobligado y/o Aval. "]
[null,"g) Planes Empresariales.- Para los Planes Empresariales, no se consideran los pagos adicionales para determinar el porcentaje de ingresos del cliente, pero si se tomará en cuenta el ingreso mínimo de 1.3 veces la mensualidad del cliente como adjudicado, considerando el cargo mensual de Seguro Automotriz y deduciendo lo que mensualmente tenga que pagar en créditos de acuerdo con su reporte de Buró, pudiendo mancomunar ingresos con su cónyuge. Se les recuerda que para plan Empresarial, los clientes deben comprobar ingresos como empleados asalariados, es decir, con recibos de nómina. No se autorizará el crédito cuando el cliente pretenda acreditar ingresos con una carta constacia, o bien como cliente informal, ya que este plan es exclusivo para clientes asalariados con recibos de nómina. Tampoco se autorizará para aquellos clientes que sean comisionistas independientes o que tengan un negocio propio al momento de la evaluación. Se deberán presentar los Recibos de Nómina en Original al momento de la Evaluación de Crédito, en donde se detalle el número de Seguridad Social para ser verificado."]
[]
[null,"h) Clientes con Ingresos no Comprobables. (Informales)\n\nRequisitos que deben reunir todos aquellos clientes que no pueden acreditar ingresos por realizar una actividad informal.\n\nPara este tipo de clientes las Agencias Investigadoras realizarán una investigación especial y más detallada sobre la actividad informal realizada por el cliente, e  independientemente de verificar su situación socioeconómica, se presentarán en el lugar o área de trabajo, solicitando información adicional de la actividad que desempeña, debiendo utilizar los formatos especiales para estos casos, y se deberán anexar varias fotografías de dicha actividad. Las analistas tomarán en cuenta el monto de los ingresos manifestados por la Agencia Investigadora. Cuando los clientes con ingresos no comprobles, deseen contratar un plan de Entrega Inmediata, deberán presentar sin excepción un Aval con bien inmueble, de acuerdo a las políticas de avales, con  independencia del resultado de la Tabla.\n\n\n"]
[null,"Requisitos de los Clientes con Ingresos Variables no Comprobables:\no Realizar una actividad productiva lícita y por cuenta propia (no encargado)\no Realizar una actividad con comprobante de ingresos menor a 1.3 veces la mensualidad como adjudicado, considerando el cargo mensual del seguro automotriz y deduciendo lo que mensualmente tenga que pagar en créditos de acuerdo con su reporte de buró,  y adicionalmente realicen otra actividad informal por cuenta propia que le permita incrementar sus ingresos.\no Que sean comerciantes, tianguistas de mercado sobre ruedas que presenten constancia de rutas definidas y que se encuentren reguladas por el gobierno Federal, Estatal o Municipal.\no Que tengan 2 años como mínimo realizando la misma actividad.\no Que tengan un arraigo de 2 años en el mismo domicilio y el inmueble que habite, debe ser propio o familiar, por ningún motivo se aceptarán clientes que renten.\no Para los clientes informales, será necesario que cubran una antigüedad en el sistema de 7 meses en planes de 48 meses y 9 meses en planes de 60 meses. \no Los clientes que opten por acelerar su adjudicación deberán  presentar un coobligado al pago que compruebe ingresos de 3 a 1 la mensualidad del cliente y un aval.\no No se aceptará la actividad de trasnporte Público de Pasajeros, salvo que el cliente demuestre que es propietario de 2 ó más vehículos, y que la unidad contratada no será utilizada para dicha actividad, mediante una carta firmada por el cliente, lo anterior debe ser verificado por la Agencia Investigadora, la cual debe solicitar al cliente, copia de las facturas de las unidades utilizadas para el servicio de traspote Público de Pasajeros y anexarlas al sobre de investigación. \no Asimismo cuando los ingresos rebasen la cantidad de $15,000.00 (QUINCE MIL PESOS 00/100 M.N.), se deberán anexar las notas de compra o facturas de los proveedores donde compran sus mercancías los clientes, por lo menos de 2 meses, dichas notas deben estar siempre a nombre del titular."]
[null,"Calificación  del Buró de Crédito. \nHistorial de pagos Mop 1111.- Esta opera a partir de 3 cuentas reportadas en Buró de Crédito, y cuya clave MOP es exclusivamente 1, si aparece en cualquiera de las cuentas retraso como 2, 3, 4, 5, 6, 7, 8 etc. no opera, sin excepción.                                                                                                                                                                                                                                                                                                     Puntual: Es cuando el cliente ha tenido un comportamiento adecuado, con algunos atrasos pero al corriente.     \n\nAdeudo Menor: Con varias Cuentas y una sola cuenta con atraso de 1 a 30 días por  un monto menor a  $1,000.00\n \nOcasionalmente Moroso: 1 sola Cuenta de hasta 60 días de atraso por un monto menor a  $2,000.00 aunque el cliente tenga varias cuentas con MOP (01)                           \n\nNo se autoriza el crédito: Si presenta adeudos de más de $2,000.00  enviadas a cobranza ó  presenten cuentas irrecuperables    Sin Historial: Cuando el cliente no tenga historial alguno en buró de crédito, Conauto en beneficio del cliente obtendrá un reporte de Círculo de Crédito, y en caso de contar con historial en dicho reporte se tomará como puntual, si reporta cuentas con atrasos, se verificarán éstos de acuerdo a las políticas establecidas en este apartado."]
[null,"A partir de esta fecha e independientemente de que el cliente presente un adecuado historial crediticio, al momento de verificar los ingresos del cliente, se tomarán en cuenta los pagos mensuales que esté obligado a realizar y que se desprenden del reporte de su buró de crédito.\n\nEsta información se describe en el Resumen de Créditos, en la columna de Pagos a Realizar\n\nAsí mismo y para efecto de medir el grado de riesgo, se valorará el saldo total en cuentas abiertas de los créditos otorgados, que el cliente presente hasta ese momento.\n\nCuando el consumidor presente un historial de pagos inadecuado en el reporte de buró de crédito, por el cual se indique que ha incurrido en mora de pagos ante otras Instituciones de Crédito o Prestadores de Servicios, se tendrá como no cumplimentadas las garantías (Clausula IX  inciso 2 A) del Contrato de Adhesión  al Sistema de Autofinanciamiento.        \n"]
[null,"Únicamente se aceptan las aclaraciones cuando los clientes hayan pagado con anterioridad sus adeudos reportados en Buró de Crédito, y/o Círculo de Crédito con saldos morosos, (mínimo 8 meses antes de la presentación de sus garantías), siempre y cuando se trate de una sola cuenta y se remita a Conauto el reporte de Crédito Especial, en el que se especifica la Institución Financiera que otorgó el crédito y el número de cuenta, así mismo se debe acompañar la carta finiquito expedida por dicha Institución, tomando como ocasionalmente moroso al cliente y no así como puntual, ya que su historial de pagos MOP no desaparece.\n\nNo está permitido que el cliente al momento presentar sus garantías de crédito a Conauto, pague la cuenta a la institución Financiera o de servicios, ya que el hecho de no haber cumplido sus obligaciones en tiempo y forma, nos da un antecedente de que puede llegar a ser un cliente moroso con el crédito que otorgue Conauto. \n"]
[null,"Formas de  Comprobar y Acreditar el Domicilio:\n\nComprobante de domicilio.- Sólo se aceptarán como comprobante de domicilio el recibo telefónico Telmex  o en su caso cualquier otra línea fija, los números moviles ó de celulares no serán aceptados. A partir de la fecha de la presente circular, aquellos clientes que contraten y no cuenten con línea telefónica fija, será causal para no autorizar el crédito.                                                                                                                                                                                                               Para aquellos clientes que no cuenten con línea telefónica, con independencia del resultado de la Tabla, deberán presentar un coobligado que sí cuente con una línea telefónica fija y que cumpla los parámetros del coobligado normal, lo anterior sólo aplica para clientes y no así para coobligados y/o avales, ya que para éstos será obligatorio que cuenten con una línea telefónica fija.\n\nVerificación telefónica.\n\nPrevio a la autorización del crédito, las Analistas del Departamento de Evaluación, realizarán llamadas telefónicas a todos los clientes y coobligados y/o avales en su caso, en sus respectivos domicilios y empleos, a fin de confirmar algunos datos personales y tenerlos localizados. \n"]
[null,"Acreditación de Domicilio:\n\nDomicilio Propio .- Cuando conforme a la Tabla de precalificación el cliente manifieste que su inmueble es Propio, la Agencia Investigadora, tienen la obligación de verificarlo en el Registro Público de la Propiedad, indicando dentro del formato de investigación la fecha de verificación en el Registro, así como el número de escritura y status en que se encuentra dicho inmueble (libre de gravamen o hipotecado), si no se encuentra inscrito en el R.P.P. se tendrá como Familiar.\n\nDomicilio Familiar.- Cuando el cliente indique que vive en domicilio familiar la Agencia investigadora deberá indicar el nombre y parentesco con el cliente. Si el inmueble no le pertenece al cliente pero sí al cónyuge se considera como familiar.\n\nCrédito Hipotecario.- Cuando el inmueble que habita el cliente lo esté pagando, la Agencia Investigadora deberá indicar la Institución que le otorgó el crédito. \n\nDomicilio Rentado.- Si el inmueble que habita el cliente es rentado, se calificará como renta, aunque la renta la pague algún familiar, con excepción de los clientes informales.\n"]
[null,"Formas de Identificación:\n\n• Credencial de Elector, Pasaporte Cédula Profesional o cualquier identificación emitida por el Gobierno Federal y/o Estatal.\n• Todas las identificaciones deben ser oficiales y vigentes, con fotografía y firma legible.\n• No se aceptan como identificaciones: Las licencias de conducir y las cartillas militares, esta última sólo se aceptará, si tiene una antigüedad de 2 años de expedida.\n• Para los casos, en que alguna de las partes no sepa leer ni escribir, se deberán certificar ante Fedatario Público los documentos de crédito (prenda y pagarés) o en su caso otorgar un poder notarial a nombre de un tercero con la facultad de suscribir títulos de crédito, para que firme los documentos de garantía en representación de la persona que no sabe escribir.\n"]
[null,"Acumulación de Riesgo por Adquisición de Contratos.\n\nLa cantidad máxima para el otorgamiento de créditos a Personas Físicas y Personas Morales,  será hasta por la cantidad de $600,000.00.\n\no  Personas Físicas.-  Las personas que adquieran uno o más contratos con un saldo por pagar de hasta $600,000.00 deberán presentar en forma obligatoria independientemente del resultado del perfil de precalificación, un aval.  Asimismo, se sumarán las mensualidades de cada contrato y el total se dividirá entre el ingreso neto del cliente para determinar que sigue cubriendo al menos 1.3 veces la mensualidad del cliente como adjudicado, considerando el cargo mensual de Seguro Automotriz y deduciendo lo que mensualmente tenga que pagar en créditos de acuerdo con su reporte de Buró. Para el caso que el cliente tenga dos o más contratos, deberá presentar en cada uno de ellos, un aval distinto.\n\no  Persona Morales.- Todas las Personas Morales que adquieran uno o más contratos, cuyo saldo por pagar sea menor o igual a $600,000 invariablemente deberán presentar en forma obligatoria un Aval al pago por cada contrato, sumándose de igual forma las mensualidades de cada contrato y el total se dividirá entre el ingreso acreditado, para determinar que siga cubriendo 3 a 1 veces la mensualidad de adjudicado, considerando el cargo mensual de Seguro Automotriz y deduciendo lo que mensualmente tenga que pagar en créditos de acuerdo con su reporte de Buró.\n\no  No se aceptan avales repetidos y/o cruzados.\n"]
[]
[null,"Catálogos  F-150, F-250 y F-350 y demás.\n\nPara todas las unidades incluyendo Courier, Ranger, Lobo, F-150 y F-250  independientemente del resultado de la Tabla de Precalificación, deberán de presentar dentro del sobre de investigación, el Formato Original de Uso y Tipo de Carga con la Firma del cliente y el Gerente de Autofinanciamiento. \n\nPara los clientes que hayan contratado los catálogos F-350, se requerirá la presentación de un aval con inmueble libre de gravamen que cubra 2 a 1 veces el monto pendiente del Financiamiento, y tener como mínimo 12 meses en el sistema, los cuales pueden ser acumulados por antigüedad o por mensualidades adelantadas, a excepción de los adjudicados por sorteo. Además, para este tipo de unidades el Formato de uso y carga debe contener adicionalmente la firma del Gerente General de la Distribuidora, la autorización y el folio de seguros asignado por el área de Operaciones. Para el Plan Conauto Ahorro, el 30% adicional, deberá cubrir los 12 pagos requeridos. Estas mismas politicas aplicarán para los vehículos Transit y Econoline, ya no siendo necesario el cambio de catálogo.\n"]
[null,"Cesiones de Derechos de F-350\n\nCuando se haya realizado una cesión de Derechos, y dentro de la misma  existen catálogos F-350 ó bien, los clientes deseen llevarse una unidad Transit ó Econoline, deberán apegarse a las políticas establecidas de tener el cesionario 12 meses de antigüedad ó 12 pagos realizados a partir de efectuada la cesión y presentar un aval y así mismo anexar dentro del sobre de investigación el Formato de Uso y Tipo de Carga.\n\nDicho formato también deberá anexarse, cuando se trate de unidades Courier, Ranger, Lobo, F-150 y F-250. \n\nPara todos aquellos casos en que las Cesiones se realicen entre cónyuges o entre padres e hijos, se tomará en cuenta la antigüedad en el sistema.\n"]
[null,"Clientes, Coobligados y Avales en Juicio:\n\nCualquier cliente que con anterioridad haya  contratado  con nosotros  y que  por requerimiento de pago, se haya turnado a Juicio  no se le autorizará ningún otro crédito por Conauto. Igualmente se excluyen de autorizar un crédito a los avales y coobligados de estos clientes. \n"]
[null,"No está permitido que un mismo coobligado y/o Aval garantice dos operaciones distintas, así mismo en caso de que el cliente desee ser coobligado de una operación, la Distribuidora deberá informar previamente de esta situación al Área de Evaluación de Crédito, a fin de que se analice la situación del cliente con ambos contratos y se determine su capacidad de pago, en caso de que el Distribuidor no informe de dicha situación, no se autorizará el crédito."]
[null,"Cambios de Catálogo.- Todos los cambios de catálogo, se deberán solicitar y  realizar antes de enviar el sobre de investigación, ya que no se aceptará ningún cambio una vez autorizado el crédito, lo anterior debido a que dicho crédito se autorizó tomando en cuenta la capacidad de pago al momento de su análisis, salvo que existan modificaciones de producción de la unidad contratada. En estos casos se liberará el crédito para la modificación correspondiente, siempre y cuando, la diferencia que exista entre una carta de crédito inicial no rebase la cantidad de $50,000.00 de lo contrario se tendrá que presentar un coobligado al pago y si se autorizó con coobligado tendrán que presentar un aval. \n\nVigencia de las Cartas de Crédito.- Las cartas de crédito tienen una vigencia de 60 días naturales, contados  a partir  de la  fecha de expedición.\n\nLiquidación de Plan.- Cuando el cliente liquida anticipadamente su Plan,  termina de pagar la totalidad de sus mensualidades o en su caso se liquida por siniestro (fallecimiento o incapacidad total permanente e invalidez del titular) el Departamento de Evaluación de Crédito, sólo emitirá la Carta de Crédito para la entrega de la unidad. En el caso de fallecimiento, la carta de crédito se emitirá a nombre del beneficiario indicado en el Seguro de Vida.\n"]
[null,"Reposición de Unidad.- Para aquellos clientes que tuvieron un siniestro y la Compañía Aseguradora ya emitió el cheque para que Conauto reponga la unidad contratada, el Departamento de crédito emitirá por 2ª vez una carta de crédito, y un contrato Prenda, para que se le entregue otra unidad al cliente. La Carta de Crédito se elaborará por la cantidad que mediante carta nos indique  la Gerencia de Operaciones."]
[null,"Vigencia de Folios de Autorización de Crédito: La vigencia de los folios de autorización de Crédito es de 5 días naturales contados a partir de la fecha de la autorización del crédito, fecha en que también se envía el folio a la  Distribuidora."]
[null,"Tiempos de Respuesta:\nEl tiempo de respuesta desde que se recibe el sobre de investigación y su análisis, es de 24 a 48 hrs., para planes de entrega inmediata especial será hasta de 72 hrs., pero los mismos pueden variar por documentación incompleta o la no localización del cliente.\n\nTratándose de Planes de Entrega Inmediata y Clientes Platino, los mismos se analizarán al momento en que se reciba el sobre de investigación, por lo que el tiempo de respuesta es de 12 horas. \n"]
[null,"Evaluación de Crédito Digital.\n\nEste proceso de tipo electrónico denominado Evaluación Digital, tiene por objeto reducir los tiempos de respuesta mediante el envió de imágenes digitalizadas de los documentos del cliente vía e-mail.\n\nEste sistema esta contemplado para todos aquellos clientes que por su excelente perfil pueden ser evaluados con los documentos básicos, sin requerir aclaraciones posteriores, proporcionando certeza y confianza por parte de Conauto de que son buenos clientes. Haciéndose la observación, que para el caso de que este tipo de cliente conforme a la tabla de precalificación, requiera de un coobligado, el mismo se podrá enviar, de la misma forma, vía e-mail,  respetando el número de documentos requeridos.\n"]
[null,"Requisitos por parte de la Distribuidora para Evaluación de Crédito Digital:\n\n1. Carta responsiva firmada por el Gerente General y el Gerente de Autofinanciamiento. \n\n2. La Distribuidora deberá designar a una persona cuya probidad y honradez demostrada, garantice el manejo Profesional y fidedigno de la información a enviar.\n"]
[null,"Quiénes participan para este proceso:\n Personas con ingresos nominales acreditables (recibos de nómina)\n Clientes que bajo el supuesto anterior, sean de planes maestro, premier, o empresariales en todas sus  variedades. \n\nQuiénes no participan:\n Las Personas Morales \n Los clientes con ingresos variables no comprobables \n F-350 o cualquier unidad que requiera del Formato de Uso y Tipo de carga.\n Todos aquellos clientes cuyas características de sus ingresos o buró de crédito requieran presentar más documentos de los indicados en la tabla abajo indicada, para aclaraciones adicionales, tales como declaraciones fiscales y/o estados de cuenta bancarios.\n"]

{"sheet":"Requisitos de Crédito","index":2,"n_rows":10,"n_cols":2,"rows_kept":10,"cut":false,"hidden":false,"merged":[]}
[]
[null,"\nREQUISITOS Y DOCUMENTOS QUE DEBERAN REUNIR Y PRESENTAR LOS CLIENTES AL MOMENTO DE RESULTAR  ADJUDICADOS:"]
[]
[null,"PERSONA FÍSICA:\n1. Comprobante de domicilio (Únicamente recibo telefónico Telmex o en su caso cualquier otra línea fija) no se aceptarán números de celulares y/o móviles o cualquier otro comprobante que no sea recibo telefónico.\n2. Para Clientes con Ingresos acreditables, se deberá presentar recibo de nómina acreditando ingresos netos equivalentes mínimo a 1.3 veces la mensualidad como adjudicado, considerando el monto del seguro automotriz de forma mensual y deduciendo además, la cantidad que el cliente tenga que pagar mensualmente en créditos de acuerdo a su reporte con Buró, (debiendo enviar los 3 últimos recibos de nómina o los 2 últimos meses y/o declaraciones fiscales) y tener más de un año de antigüedad laboral.\nPara clientes con Ingresos no acreditables (Informales), las Agencias Investigadoras realizarán una investigación especial más detallada sobre la actividad informal realizada por el cliente, verificando su situación socioeconómica, con la obligación de  presentarse en el lugar o área de trabajo, debiendo utilizar los formatos especiales para estos casos, y se deberán anexar varias fotografías de dicha actividad.\n3. Identificación oficial y vigente con fotografía y firma legible (credencial de elector, pasaporte, cédula profesional).\n4. Si el inmueble que habita el cliente, es propio deberá comprobarlo (verificado por la agencia investigadora en el Registro Público de la Propiedad) y si es familiar indicar nombre y parentesco con el cliente.\n5. Reporte de buró de crédito original con un buen comportamiento crediticio.\n6. Formato de autorización de buró de crédito de Conauto con firma autógrafa debidamente llenado.\n7. El cliente deberá aceptar y pagar una investigación socioeconómica, que realizará una Agencia Investigadora previamente autorizada por el Corporativo Conauto anexando Croquis y Fotografía del inmueble donde habita el cliente.\n"]
[]
[null,"PERSONA MORAL:\n\n1. Acta constitutiva inscrita en el Registro Público de Comercio, debiendo tener más de 1 año de actividad Comercial. \n2. Poder notarial de la persona facultada para suscribir títulos de crédito. \n3. Identificación oficial y vigente con fotografía y firma legible (credencial de elector, pasaporte, cédula profesional) de la persona facultada para suscribir títulos de crédito.\n4. Estados financieros actualizados (auditados) y las últimas declaraciones fiscales anuales, acreditando ingresos netos equivalentes 2 a 1  la aportación total como adjudicado, considerando el monto del seguro automotriz mensual y deduciendo además lo que mensualmente tenga que pagar en créditos de acuerdo con su reporte de Buró.\n5. Comprobante de domicilio de la empresa (sólo recibo telefónico Telmex actualizado ó en su caso cualquier otra línea fija) a nombre de la Empresa. (no celulares ni móviles)\n6. Reporte de buró de crédito original con un buen comportamiento crediticio.\n7. Formato de autorización de buro de crédito de Conauto con firma autógrafa debidamente llenado.\n8. El cliente deberá aceptar y pagar una investigación socioeconómica, que realizará una Agencia Investigadora previamente autorizada por el Corporativo Conauto anexando Croquis y fotografía del lugar donde está ubicada la Empresa.\n\nNOTA: En Personas Morales, forzoso presentar un coobligado al pago y/o aval.\n"]
[]
[null,"COOBLIGADO: \n\n1. Comprobante de ingresos, los más recientes, acreditando ingresos netos equivalentes 3 a 1 la mensualidad como adjudicado. (sólo recibos de nómina y/o declaraciones fiscales) con una antigüedad laboral de más de un año, aplicando la misma política de ingresos que el cliente.\n2. Comprobante de domicilio (Únicamente recibo telefónico Telmex ó en su caso cualquier otra línea fija) no se aceptarán números de celulares y/o móviles ó cualquier otro comprobante que no sea recibo telefónico.\n3. Identificación oficial y vigente con fotografía y firma legible (credencial de elector, pasaporte, cédula profesional )\n4. Reporte de buró de crédito original con buen comportamiento crediticio.\n5. Edad de 18 a 64 años \n6. Formato de autorización de buró de crédito de Conauto con firma autógrafa debidamente llenado.\n7. Aceptar que se realice una investigación socioeconómica que realizará una Agencia Investigadora previamente autorizada por el Corporativo Conauto anexando Croquis y Fotografía del lugar donde habita el coobligado.\n\n\n\n"]
[]
[null,"AVAL: \n\n1. Edad de 18 a 70 años\n2. Copias de las escrituras del inmueble en garantía, libre de gravamen que cubra 2 a 1 veces el monto pendiente del financiamiento.\n3. Identificación oficial y vigente con fotografía y firma legible del propietario y la esposa(o), sólo en el caso de comprar como casado. (credencial de elector, pasaporte, cédula profesional)\n4. Acta de matrimonio sólo para el caso de estar casado por Separación de Bienes. \n5. Comprobante de domicilio (Únicamente recibo telefónico Telmex ó en su caso cualquier otra línea fija, no se aceptarán números de celulares y/o móviles o cualquier otro comprobante que no sea recibo telefónico), donde habita el aval, para el caso de ser diferente el domicilio en garantía, anexar el comprobante respectivo.\n6. Verificación del inmueble en el Registro Público de la Propiedad por la Agencia Investigadora anexando Fotografía y croquis del lugar donde habita el aval y el de la garantía para el caso de ser diferente, indicando el valor comercial del inmueble. No se admiten inmuebles rusticos, ejidos, parcelas, o cualquiera regulado por la ley Agraria, tampoco bienes considerados como patrimonio Familiar y tampoco terrenos sin construcción.\n"]

{"sheet":"No Aplica a","index":3,"n_rows":8,"n_cols":2,"rows_kept":8,"cut":false,"hidden":false,"merged":[]}
[]
[null,"CLIENTES A QUIEN NO APLICA TABLA"]
[]
[null,"Clientes Repetitivos.- Todos los clientes que hayan concluido un plan con o sin factura entregada o en su caso lleven pagado el 50% de su plan al corriente, y quieran celebrar otro contrato, solamente presentarán la siguiente documentación:\n Investigación de crédito.\n Reporte de buró de crédito con buen historial de pagos.\n Formato de Autorización de Buró de Crédito con firma autógrafa.\n Identificación oficial y vigente con fotografía y firma legible.\n Comprobante de domicilio actualizado (Sólo recibo telefónico)\n Comprobante de ingresos acreditando 1.3 veces la mensualidad del cliente como adjudicado, considerando las aportaciones del o de demás contraros, el cargo de Seguro Automotriz y deduciendo lo que mensualmente tenga que pagar en créditos de acuerdo con su reporte de Buró. \n\n"]
[]
[null,"Clientes Platino.- Son aquellos clientes que concluyeron su plan y pagaron puntualmente todas sus mensualidades, generando como máximo saldos vencidos en intereses por $ 10,000.00, por lo cual tendrán un crédito Pre-autorizado, sin necesidad de realizarle una nueva investigación socioeconómica, solo será necesario actualizar la siguiente documentación:\n Identificación oficial y vigente con foto y firma legible.\n Comprobante de domicilio actualizado (recibo telefónico)\n Reporte de buró de crédito, con buen historial de pagos.\n Formato de Autorización de Buró de Crédito con firma autógrafa.\n Comprobante de ingresos, acreditando 1.3 veces la mensualidad del cliente como adjudicado, considerando el cargo de Seguro Automotriz y deduciendo lo que mensualmente tenga que pagar en créditos de acuerdo con su reporte de Buró. \n"]
[]
[null,"Clientes VIP.- Para los clientes con ingresos acreditables que tengan pagado el 60% de su plan, y para los clientes Informales que hayan pagado el 70% del plan, se podrá autorizar el crédito, sin necesidad de realizar la investigación socioeconómica, ni la aplicación de tabla, sólo presentarán la siguiente documentación:\n Identificación oficial y vigente con foto y firma legible.\n Comprobante de domicilio actualizado (recibo telefónico)\n Reporte de buró de crédito.\n Formato de Autorización de Buró de Crédito con firma autógrafa.\n\n"]

{"sheet":"Tabla Perfil  Jul 09","index":4,"n_rows":139,"n_cols":21,"rows_kept":139,"cut":false,"hidden":false,"merged":[[2,13,2,14],[2,11,2,12],[0,1,0,5],[15,1,15,5],[18,2,18,5],[20,2,20,5],[21,1,22,1],[21,2,22,2],[21,3,22,3],[21,4,22,4],[21,5,22,5],[1,1,1,2],[1,3,1,5],[23,2,23,5],[24,2,24,5],[25,2,25,5],[27,1,27,5],[28,1,30,1],[28,2,30,2],[28,3,30,3],[28,4,30,4],[28,5,30,5],[65,4,65,5],[65,6,65,7],[71,4,71,6],[71,15,71,19],[31,2,31,5],[33,2,33,5],[34,2,34,5],[36,1,36,3],[36,12,36,14],[55,2,55,3]]}
[null,"TABLA PERFIL PARA CLIENTES CONAUTO",null,null,null,null,1]
[null,"1. TIPO DE PLAN"]
[null,"2. NOMBRE CTE.","X","3. PAGO REAL DEL CLIENTE"," 4. Tipo de Cliente","Ingresos Comprobables",null,"CLIENTE PARA SER EXCELENTE DEBE:",{"$f":"IF(F3=\"Informal\",VLOOKUP(\"excelente\",O38:P53,2,0),VLOOKUP(\"excelente\",D38:E53,2,0))","v":12.5},null,null,"FORMALES",null,"INFORMALES"]
[null,"5. GPO. INT.","X",67108,"6. Antigüedad Empleo",4,null,"TENER PAGADO",{"$f":"IF(ISERROR(IF(F3=\"INFORMAL\",IF(E9=48,F139,G139),IF(E9=48,D139,E139))*D6),\"\",IF(F3=\"INFORMAL\",IF(E9=48,F139,G139),IF(E9=48,D139,E139))*D6)","v":123920.08200000001}]
[null,"7. Catálogo Contratado","X","8. MONTO TOTAL DE AUTIFINANCIAMIENTO","9. Domicilio","RENTA",null,"A PAGAR",{"$f":"IF(ISERROR(IF(I4-D4<0,0,(I4-D4))),\"\",IF(I4-D4<0,0,(I4-D4)))","v":56812.082000000009}]
[null,"10. Ingreso Neto del Cliente-Después de Impuestos",15000,275377.96000000002,"11. Buró de Crédito","OCASIONALMENTE MOROSO",null,null,null,null,{"$f":"C7+E7","v":4556.3099999999995}]
[null,"12. Mensualidad Como Adjudicado y/o Pago Mínimo Requerido",3615.43,"13. Seguro Aut. Mensual",940.88,"14. Porcentaje de Ingresos",null,null,null,null,{"$f":"(C6*0.65-C8)/E8","v":1.3381442439166784}]
[null,"15. Pagos Buró de Crédito",3653,"16. Aportación Total",{"$f":"K6","v":4556.3099999999995},{"$f":"K7","v":1.3381442439166784}]
[null,"17. Porcentaje Pagado / Monto Financiamiento",{"$f":"D4/D6","v":0.24369415765880462},"18. PLAZO DE PLAN",60,"21. Resultado"]
[null,"19. Inmovilizador","SI","20. MENS.PAGADAS",{"$f":"D4/(D6/E9)","v":14.621649459528276},{"$f":"C35","v":"Aval"}]
[]
["Se les Recuerda que es una tabla de Pre Calificación "]
["CONAUTO CORPORATIVO, SE RESERVA EL DERECHO DE LA AUTORIZACION DEL CREDITO EN FUNCION A LA VALORACION"]
["DEL PERFIL DEL CLIENTE, SUS GARANTIAS Y LA COBERTURA DE RIESGO INDISPENSABLE A LA ORGANIZACIÓN. "]
["APLICAN RESTRICCIONES"]
[null,"REQUISITOS INDISPENSABLES TABLA PERFIL"]
[null,"Aspectos  a Evaluar del Cliente","Requisitos Para Cliente  Excelente","Requisitos  Clientes  con Coobligado","Requisitos Cliente que Requiere Aval","Consideraciones Especiales"]
[null,"Porcentaje Pagado / Plazo","20% o más ","17% al 19.99%","14% al 16.99%","Totales"]
[null,{"$f":"IF(E9=48,VLOOKUP(C19,IF(F3=\"informal\",$O$74:$P$121,$C$74:$D$121),2,TRUE),VLOOKUP(C19,IF(F3=\"informal\",$S$74:$T$133,$G$74:$H$133),2,TRUE))","v":2.3519999999999999},{"$f":"C9","v":0.24369415765880462},null,null,null,null,"COOBLIGADO Y/O AVAL"]
[null,"Ingresos del Cliente","2.5 ó más veces la mensualidad","1.9 a 2.10 veces la mensualidad","1 .3 a 1.89 veces la mensualidad","MENOS DE 1.3 VECES LA MENSUALIDAD, NO SE AUTORIZA",null,"COOBLIGADO Y/O AVAL"]
[null,{"$f":"VLOOKUP(C21,IF(F3=\"informal\",$I$46:$K$52,$F$46:$H$52),3,TRUE)","v":0.45499999999999996},{"$f":"F8","v":1.3381442439166784},null,null,null,null,"AVAL"]
[null,"Buró de Crédito","Pagos puntuales y sin adeudos"," 1 cuenta con adeudos menores a      $1,000.00 Hasta 60 días.","Sin Historial en Buró Crédito, ó  adeudo en 1 cuenta menores a  $ 2,000.00 Hasta 30 días","CON ADEUDOS O ATRASOS DE 60 DÍAS MAYORES A $2,000.00   Y/O CUENTAS IRRECUPERABLES, NO SE AUTORIZA"]
[]
[null,{"$f":"VLOOKUP(C24,$C$57:$D$61,2,FALSE)","v":0},{"$f":"F6","v":"OCASIONALMENTE MOROSO"}]
[null,"INMOVILIZADOR"]
[null,{"$f":"IF(G1=2,0,VLOOKUP(C26,C64:D66,2,FALSE))","v":1},{"$f":"C10","v":"SI"}]
[]
[null,"REQUISITOS SECUNDARIOS"]
[null,"Domicilio habitado por el cliente.","Inmueble Propio (libre de gravamen)","Inmueble Familiar o Crédito Hipotecario","Renta"]
[]
[null,null,null,null,null,null,null,null,"BURÓ DE CRÉDITO",null,null,null,null,"INMOVILIZADOR"]
[null,{"$f":"VLOOKUP(C32,IF(F3=\"informal\",$G$67:$H$70,$E$67:$F$70),2,FALSE)","v":0},{"$f":"F5","v":"RENTA"},null,null,null,null,null,"MOROSO",null,null,null,null,"SI"]
[null,"Antigüedad en el Empleo","3 años ó más","2 a 3 años","1 año ó más","Menos de 1 año",null,null,"SIN HISTORIAL",null,null,null,null,{"$f":"IF(G1=2,\"SI\",\"NO\")","v":"NO"}]
[null,{"$f":"VLOOKUP(C34,IF(F3=\"informal\",$H$56:$J$63,$E$56:$G$62),3,TRUE)","v":3.1680000000000001},{"$f":"F4","v":4},null,null,null,null,null,"ADEUDO MENOR"]
[null,{"$f":"SUM(B34+B32+B24+B21+B19+B26)","v":6.9749999999999996},{"$f":"IF(F3=\"informal\",VLOOKUP(B35,$M$38:$O$53,3,TRUE),VLOOKUP(B35,B38:D53,3,TRUE))","v":"Aval"},null,null,null,null,null,"OCASIONALMENTE MOROSO",null,48]
[null,null,null,null,null,null,null,null,"PUNTUAL",null,60]
[null,"RANGO CALIFICACION FORMALES",null,null,"Rango Sup.","Calif.",null,"OTROS PLANES (INCLUYE ENTREGA INMEDIATA NORMAL)","HIST PAGOS 111",null,null,null,"RANGO CALIFICACION INFORMALES"]
[1,1,1.4990000000000001,"No se Autoriza",{"$f":"+B38","v":1},9.9900000000000003E-2,1,"ENTREGA INMEDIATA PLAN ESPECIAL","INMUEBLE",null,null,null,1,1.4990000000000001,"No se Autoriza",{"$f":"+M38","v":1}]
[2,1.5,2.4990000000000001,"No se Autoriza",{"$f":"+B39","v":1.5},0.14990000000000001,2,null,"RENTA",null,null,null,1.5,2.4990000000000001,"No se Autoriza",{"$f":"+M39","v":1.5}]
[3,2.5,3.4990000000000001,"No se Autoriza",2.5,null,3,null,"HIPOTECARIO",null,null,null,2.5,3.4990000000000001,"No se Autoriza",2.5]
[4,3.5,4.4989999999999997,"Aval",3.5,0.34989999999999999,4,null,"FAMILIAR",null,null,null,3.5,4.4989999999999997,"Aval",3.5]
[5,4.5,5.4989999999999997,"Aval",4.5,0.49990000000000001,5,null,"PROPIO",null,null,null,4.5,5.4989999999999997,"Aval",4.5]
[6,5.5,6.4989999999999997,"Aval",5.5,0.59989999999999999,6,null,null,null,null,null,5.5,6.4989999999999997,"Aval",5.5]
[7,6.5,7.4989999999999997,"Aval",6.5,null,null,null,null,null,null,null,6.5,7.4989999999999997,"Aval",6.5]
[8,7.5,8.4990000000000006,"Coobligado",7.5,"RANGO INGRESOS FORMAL",null,null,"RANGO INGRESOS INFORMAL",null,null,null,7.5,8.4990000000000006,"Coobligado",7.5]
[9,8.5,9.4990000000000006,"Coobligado",8.5,1.3,1.39,0.45499999999999996,1.3,1.39,0.41600000000000004,null,8.5,9.4990000000000006,"Coobligado",8.5]
[10,9.5,10.499000000000001,"Coobligado",9.5,1.4,1.49,0.97999999999999987,1.4,1.49,0.83200000000000007,null,9.5,10.499000000000001,"Coobligado",9.5]
[11,10.5,11.499000000000001,"Coobligado",10.5,1.5,1.59,1.575,1.5,1.59,1.3439999999999999,null,10.5,11.499000000000001,"Coobligado",10.5]
[12,11.5,12.499000000000001,"Coobligado",11.5,1.6,1.69,2.2399999999999998,1.6,1.69,1.92,null,11.5,12.499000000000001,"Coobligado",11.5]
[13,12.5,13.499000000000001,"Excelente",12.5,1.7,1.79,2.9749999999999996,1.7,1.79,2.56,null,12.5,13.499000000000001,"Excelente",12.5]
[14,13.5,14.499000000000001,"Excelente",13.5,1.8,1.89,3.78,1.8,1.89,3.2639999999999998,null,13.5,14.499000000000001,"Excelente",13.5]
[15,14.5,15.499000000000001,"Excelente",14.5,1.9,1.99,4.6549999999999994,1.9,1.99,4.032,null,14.5,15.499000000000001,"Excelente",14.5]
[16,15.5,30,"Excelente",15.5,2,100,5.6,2,100,4.8639999999999999,null,15.5,30,"Excelente",15.5]
[17]
[18]
[19,null,"RANGO BURO",null,null,"RANGO EMPLEO FORMAL",null,null,"RANGO EMPLEO INFORMAL"]
[20,null,"OCASIONALMENTE MOROSO",0,0.3,8.8999999999999996E-2,4.8000000000000001E-2,0,0.99,"NO SE AUTORIZA"]
[21,null,"SIN HISTORIAL",1,0.9,1.49,0.28800000000000003,1,1.29,0.16]
[22,null,"ADEUDO MENOR",2,1.5,2.09,0.72,1.3,1.59,0.41600000000000004]
[23,null,"PUNTUAL",3,2.1,2.69,1.3440000000000001,1.6,1.89,0.76800000000000013]
[null,null,"HIST PAGOS 111",4,2.7,3.29,2.16,1.9,2.19,1.216]
[null,null,null,null,3.3,100,3.1680000000000001,2.2000000000000002,2.4900000000000002,1.9]
[null,null,null,null,null,null,null,2.5,100,2.7]
[null,null,"INMOVILIZADOR"]
[24,null,"SI",1,null,null,null,null,"Ingresos Comprobables"]
[25,null,"NO",0,"RANGO VIVIENDA FORMAL",null,"RANGO VIVIENDA INFORMAL",null,"Informal"]
[26,null,null,null,"RENTA",0,"RENTA","NO SE AUTORIZA"]
[27,null,null,null,"HIPOTECARIO",1,"HIPOTECARIO",1]
[28,null,null,null,"FAMILIAR",1,"FAMILIAR",1]
[29,null,null,null,"PROPIO",2,"PROPIO",2]
[30]
[31,null,null,null,"RANGO PORCENTAJE PLAN PAGADO FORMALES",null,null,null,null,null,null,null,null,null,null,"PORCENTAJE PLAN PAGADO INFORMALES"]
[32,null,48,null,null,60,null,null,null,null,null,null,null,null,48,null,null,60]
[33,1,{"$f":"1/48","v":2.0833333333333332E-2},0.03,{"$f":"+C75","v":4.1666666666666664E-2},1,{"$f":"1/60","v":1.6666666666666666E-2},3.1500000000000007E-2,{"$f":"+G75","v":3.3333333333333333E-2},null,{"$f":"1/48","v":2.0833333333333332E-2},0.05,null,1,{"$f":"1/48","v":2.0833333333333332E-2},0.03,{"$f":"+O75","v":4.1666666666666664E-2},1,{"$f":"1/60","v":1.6666666666666666E-2},3.2000000000000001E-2,{"$f":"+S75","v":3.3333333333333333E-2}]
[34,2,{"$f":"2/48","v":4.1666666666666664E-2},0.09,{"$f":"+C76","v":6.25E-2},2,{"$f":"2/60","v":3.3333333333333333E-2},8.4000000000000005E-2,{"$f":"+G76","v":0.05},null,{"$f":"2/48","v":4.1666666666666664E-2},0.75,null,2,{"$f":"2/48","v":4.1666666666666664E-2},0.09,{"$f":"+O76","v":6.25E-2},2,{"$f":"2/60","v":3.3333333333333333E-2},8.320000000000001E-2,{"$f":"+S76","v":0.05}]
[35,3,{"$f":"3/48","v":6.25E-2},0.18,8.3333333333333329E-2,3,{"$f":"3/60","v":0.05},0.15750000000000003,6.6666666666666666E-2,null,{"$f":"3/48","v":6.25E-2},1,null,3,{"$f":"3/48","v":6.25E-2},0.18,8.3333333333333329E-2,3,{"$f":"3/60","v":0.05},0.15360000000000001,6.6666666666666666E-2]
[36,4,{"$f":"4/48","v":8.3333333333333329E-2},0.3,0.10416666666666667,4,{"$f":"4/60","v":6.6666666666666666E-2},0.25200000000000006,8.3333333333333329E-2,null,{"$f":"4/48","v":8.3333333333333329E-2},1.5,null,4,{"$f":"4/48","v":8.3333333333333329E-2},0.3,0.10416666666666667,4,{"$f":"4/60","v":6.6666666666666666E-2},0.24320000000000003,8.3333333333333329E-2]
[37,5,{"$f":"5/48","v":0.10416666666666667},0.44999999999999996,0.125,5,{"$f":"5/60","v":8.3333333333333329E-2},0.36750000000000005,0.1,null,{"$f":"5/48","v":0.10416666666666667},1.75,null,5,{"$f":"5/48","v":0.10416666666666667},0.44999999999999996,0.125,5,{"$f":"5/60","v":8.3333333333333329E-2},0.35199999999999998,0.1]
[38,6,{"$f":"6/48","v":0.125},0.63,0.14583333333333334,6,{"$f":"6/60","v":0.1},0.504,0.11666666666666667,null,{"$f":"6/48","v":0.125},2,null,6,{"$f":"6/48","v":0.125},0.63,0.14583333333333334,6,{"$f":"6/60","v":0.1},0.48,0.11666666666666667]
[39,7,{"$f":"7/48","v":0.14583333333333334},0.84,0.16666666666666666,7,{"$f":"7/60","v":0.11666666666666667},0.66149999999999998,0.13333333333333333,null,{"$f":"7/48","v":0.14583333333333334},2.5,null,7,{"$f":"7/48","v":0.14583333333333334},0.84,0.16666666666666666,7,{"$f":"7/60","v":0.11666666666666667},0.62719999999999998,0.13333333333333333]
[40,8,{"$f":"8/48","v":0.16666666666666666},1.08,0.1875,8,{"$f":"8/60","v":0.13333333333333333},0.84,0.15,null,{"$f":"8/48","v":0.16666666666666666},2.25,null,8,{"$f":"8/48","v":0.16666666666666666},1.08,0.1875,8,{"$f":"8/60","v":0.13333333333333333},0.79359999999999997,0.15]
[41,9,{"$f":"9/48","v":0.1875},1.3499999999999999,0.20833333333333334,9,{"$f":"9/60","v":0.15},1.0394999999999999,0.16666666666666666,null,{"$f":"9/48","v":0.1875},2.75,null,9,{"$f":"9/48","v":0.1875},1.3499999999999999,0.20833333333333334,9,{"$f":"9/60","v":0.15},0.97919999999999985,0.16666666666666666]
[42,10,{"$f":"10/48","v":0.20833333333333334},1.65,0.22916666666666666,10,{"$f":"10/60","v":0.16666666666666666},1.2599999999999998,0.18333333333333332,null,{"$f":"10/48","v":0.20833333333333334},3,null,10,{"$f":"10/48","v":0.20833333333333334},1.65,0.22916666666666666,10,{"$f":"10/60","v":0.16666666666666666},1.1839999999999997,0.18333333333333332]
[43,11,{"$f":"11/48","v":0.22916666666666666},1.98,0.25,11,{"$f":"11/60","v":0.18333333333333332},1.5014999999999998,0.2,null,{"$f":"11/48","v":0.22916666666666666},3.5,null,11,{"$f":"11/48","v":0.22916666666666666},1.98,0.25,11,{"$f":"11/60","v":0.18333333333333332},1.4079999999999997,0.2]
[44,12,{"$f":"12/48","v":0.25},2.34,0.27083333333333331,12,{"$f":"12/60","v":0.2},1.7639999999999998,0.21666666666666667,null,{"$f":"12/48","v":0.25},3.75,null,12,{"$f":"12/48","v":0.25},2.34,0.27083333333333331,12,{"$f":"12/60","v":0.2},1.6511999999999996,0.21666666666666667]
[45,13,{"$f":"13/48","v":0.27083333333333331},2.73,0.29166666666666669,13,{"$f":"13/60","v":0.21666666666666667},2.0474999999999999,0.23333333333333334,null,{"$f":"13/48","v":0.27083333333333331},4,null,13,{"$f":"13/48","v":0.27083333333333331},2.73,0.29166666666666669,13,{"$f":"13/60","v":0.21666666666666667},1.9135999999999995,0.23333333333333334]
[46,14,{"$f":"14/48","v":0.29166666666666669},3.15,0.3125,14,{"$f":"14/60","v":0.23333333333333334},2.3519999999999999,0.25,null,{"$f":"14/48","v":0.29166666666666669},4.25,null,14,{"$f":"14/48","v":0.29166666666666669},3.15,0.3125,14,{"$f":"14/60","v":0.23333333333333334},2.1951999999999994,0.25]
[47,15,{"$f":"15/48","v":0.3125},3.5999999999999996,0.33333333333333331,15,{"$f":"15/60","v":0.25},2.6774999999999998,0.26666666666666666,null,{"$f":"15/48","v":0.3125},4.5,null,15,{"$f":"15/48","v":0.3125},3.5999999999999996,0.33333333333333331,15,{"$f":"15/60","v":0.25},2.4959999999999991,0.26666666666666666]
[48,16,{"$f":"16/48","v":0.33333333333333331},4.08,0.35416666666666669,16,{"$f":"16/60","v":0.26666666666666666},3.0239999999999996,0.28333333333333333,null,{"$f":"16/48","v":0.33333333333333331},4.75,null,16,{"$f":"16/48","v":0.33333333333333331},4.08,0.35416666666666669,16,{"$f":"16/60","v":0.26666666666666666},2.8159999999999989,0.28333333333333333]
[49,17,{"$f":"17/48","v":0.35416666666666669},4.59,0.375,17,{"$f":"17/60","v":0.28333333333333333},3.3914999999999997,0.3,null,{"$f":"17/48","v":0.35416666666666669},5,null,17,{"$f":"17/48","v":0.35416666666666669},4.59,0.375,17,{"$f":"17/60","v":0.28333333333333333},3.1551999999999989,0.3]
[50,18,{"$f":"18/48","v":0.375},5.13,0.39583333333333331,18,{"$f":"18/60","v":0.3},3.7799999999999994,0.31666666666666665,null,{"$f":"18/48","v":0.375},5.25,null,18,{"$f":"18/48","v":0.375},5.13,0.39583333333333331,18,{"$f":"18/60","v":0.3},3.5135999999999985,0.31666666666666665]
[51,19,{"$f":"19/48","v":0.39583333333333331},5.7,0.41666666666666669,19,{"$f":"19/60","v":0.31666666666666665},4.1894999999999989,0.33333333333333331,null,{"$f":"19/48","v":0.39583333333333331},5.5,null,19,{"$f":"19/48","v":0.39583333333333331},5.7,0.41666666666666669,19,{"$f":"19/60","v":0.31666666666666665},3.8911999999999987,0.33333333333333331]
[52,20,{"$f":"20/48","v":0.41666666666666669},6.3,0.4375,20,{"$f":"20/60","v":0.33333333333333331},4.6199999999999983,0.35,null,{"$f":"20/48","v":0.41666666666666669},5.75,null,20,{"$f":"20/48","v":0.41666666666666669},6.3,0.4375,20,{"$f":"20/60","v":0.33333333333333331},4.2879999999999985,0.35]
[53,21,{"$f":"21/48","v":0.4375},6.93,0.45833333333333331,21,{"$f":"21/60","v":0.35},5.0714999999999986,0.36666666666666664,null,{"$f":"21/48","v":0.4375},6,null,21,{"$f":"21/48","v":0.4375},6.93,0.45833333333333331,21,{"$f":"21/60","v":0.35},4.703999999999998,0.36666666666666664]
[54,22,{"$f":"22/48","v":0.45833333333333331},7.59,0.47916666666666669,22,{"$f":"22/60","v":0.36666666666666664},5.5439999999999987,0.38333333333333336,null,{"$f":"22/48","v":0.45833333333333331},6.25,null,22,{"$f":"22/48","v":0.45833333333333331},7.59,0.47916666666666669,22,{"$f":"22/60","v":0.36666666666666664},5.139199999999998,0.38333333333333336]
[55,23,{"$f":"23/48","v":0.47916666666666669},8.2799999999999994,0.5,23,{"$f":"23/60","v":0.38333333333333336},6.0374999999999988,0.4,null,{"$f":"23/48","v":0.47916666666666669},6.5,null,23,{"$f":"23/48","v":0.47916666666666669},8.2799999999999994,0.5,23,{"$f":"23/60","v":0.38333333333333336},5.5935999999999977,0.4]
[56,24,{"$f":"24/48","v":0.5},9,0.52083333333333337,24,{"$f":"24/60","v":0.4},6.5519999999999978,0.41666666666666669,null,{"$f":"24/48","v":0.5},6.75,null,24,{"$f":"24/48","v":0.5},9,0.52083333333333337,24,{"$f":"24/60","v":0.4},6.067199999999997,0.41666666666666669]
[57,25,{"$f":"25/48","v":0.52083333333333337},9.75,0.54166666666666663,25,{"$f":"25/60","v":0.41666666666666669},7.0874999999999986,0.43333333333333335,null,{"$f":"25/48","v":0.52083333333333337},7,null,25,{"$f":"25/48","v":0.52083333333333337},9.75,0.54166666666666663,25,{"$f":"25/60","v":0.41666666666666669},6.5599999999999987,0.43333333333333335]
[58,26,{"$f":"26/48","v":0.54166666666666663},10.53,0.5625,26,{"$f":"26/60","v":0.43333333333333335},7.6440000000000001,0.45,null,{"$f":"26/48","v":0.54166666666666663},7.25,null,26,{"$f":"26/48","v":0.54166666666666663},10.53,0.5625,26,{"$f":"26/60","v":0.43333333333333335},7.0719999999999983,0.45]
[59,27,{"$f":"27/48","v":0.5625},11.34,0.58333333333333337,27,{"$f":"27/60","v":0.45},8.2215000000000007,0.46666666666666667,null,{"$f":"27/48","v":0.5625},7.5,null,27,{"$f":"27/48","v":0.5625},11.34,0.58333333333333337,27,{"$f":"27/60","v":0.45},7.6031999999999993,0.46666666666666667]
[60,28,{"$f":"28/48","v":0.58333333333333337},12.18,0.60416666666666663,28,{"$f":"28/60","v":0.46666666666666667},8.82,0.48333333333333334,null,{"$f":"28/48","v":0.58333333333333337},7.75,null,28,{"$f":"28/48","v":0.58333333333333337},12.18,0.60416666666666663,28,{"$f":"28/60","v":0.46666666666666667},8.1535999999999991,0.48333333333333334]
[null,29,{"$f":"29/48","v":0.60416666666666663},"VIP",0.625,29,{"$f":"29/60","v":0.48333333333333334},9.4395000000000024,0.5,null,{"$f":"29/48","v":0.60416666666666663},"VIP",null,29,{"$f":"29/48","v":0.60416666666666663},13.484999999999999,0.625,29,{"$f":"29/60","v":0.48333333333333334},8.7232000000000003,0.5]
[null,30,{"$f":"30/48","v":0.625},"VIP",0.64583333333333337,30,{"$f":"30/60","v":0.5},10.080000000000004,0.51666666666666672,null,{"$f":"30/48","v":0.625},"VIP",null,30,{"$f":"30/48","v":0.625},"VIP",0.64583333333333337,30,{"$f":"30/60","v":0.5},9.3120000000000012,0.51666666666666672]
[null,31,{"$f":"31/48","v":0.64583333333333337},"VIP",0.66666666666666663,31,{"$f":"31/60","v":0.51666666666666672},10.741500000000004,0.53333333333333333,null,{"$f":"31/48","v":0.64583333333333337},"VIP",null,31,{"$f":"31/48","v":0.64583333333333337},"VIP",0.66666666666666663,31,{"$f":"31/60","v":0.51666666666666672},9.9200000000000017,0.53333333333333333]
[null,32,{"$f":"32/48","v":0.66666666666666663},"VIP",0.6875,32,{"$f":"32/60","v":0.53333333333333333},11.424000000000005,0.55000000000000004,null,{"$f":"32/48","v":0.66666666666666663},"VIP",null,32,{"$f":"32/48","v":0.66666666666666663},"VIP",0.6875,32,{"$f":"32/60","v":0.53333333333333333},10.547200000000002,0.55000000000000004]
[null,33,{"$f":"33/48","v":0.6875},"VIP",0.70833333333333337,33,{"$f":"33/60","v":0.55000000000000004},12.127500000000005,0.56666666666666665,null,{"$f":"33/48","v":0.6875},"VIP",null,33,{"$f":"33/48","v":0.6875},"VIP",0.70833333333333337,33,{"$f":"33/60","v":0.55000000000000004},11.193600000000004,0.56666666666666665]
[null,34,{"$f":"34/48","v":0.70833333333333337},"VIP",0.72916666666666663,34,{"$f":"34/60","v":0.56666666666666665},12.852000000000007,0.58333333333333337,null,{"$f":"34/48","v":0.70833333333333337},"VIP",null,34,{"$f":"34/48","v":0.70833333333333337},"VIP",0.72916666666666663,34,{"$f":"34/60","v":0.56666666666666665},11.859200000000005,0.58333333333333337]
[null,35,{"$f":"35/48","v":0.72916666666666663},"VIP",0.75,35,{"$f":"35/60","v":0.58333333333333337},13.597500000000007,0.6,null,{"$f":"35/48","v":0.72916666666666663},"VIP",null,35,{"$f":"35/48","v":0.72916666666666663},"VIP",0.75,35,{"$f":"35/60","v":0.58333333333333337},12.544000000000006,0.6]
[null,36,{"$f":"36/48","v":0.75},"VIP",0.77083333333333337,36,{"$f":"36/60","v":0.6},"VIP",0.6166666666666667,null,{"$f":"36/48","v":0.75},"VIP",null,36,{"$f":"36/48","v":0.75},"VIP",0.77083333333333337,36,{"$f":"36/60","v":0.6},13.248000000000006,0.6166666666666667]
[null,37,{"$f":"37/48","v":0.77083333333333337},"VIP",0.79166666666666663,37,{"$f":"37/60","v":0.6166666666666667},"VIP",0.6333333333333333,null,{"$f":"37/48","v":0.77083333333333337},"VIP",null,37,{"$f":"37/48","v":0.77083333333333337},"VIP",0.79166666666666663,37,{"$f":"37/60","v":0.6166666666666667},13.971200000000009,0.6333333333333333]
[null,38,{"$f":"38/48","v":0.79166666666666663},"VIP",0.8125,38,{"$f":"38/60","v":0.6333333333333333},"VIP",0.65,null,{"$f":"38/48","v":0.79166666666666663},"VIP",null,38,{"$f":"38/48","v":0.79166666666666663},"VIP",0.8125,38,{"$f":"38/60","v":0.6333333333333333},14.713600000000008,0.65]
[null,39,{"$f":"39/48","v":0.8125},"VIP",0.83333333333333337,39,{"$f":"39/60","v":0.65},"VIP",0.66666666666666663,null,{"$f":"39/48","v":0.8125},"VIP",null,39,{"$f":"39/48","v":0.8125},"VIP",0.83333333333333337,39,{"$f":"39/60","v":0.65},"VIP",0.66666666666666663]
[null,40,{"$f":"40/48","v":0.83333333333333337},"VIP",0.85416666666666663,40,{"$f":"40/60","v":0.66666666666666663},"VIP",0.68333333333333335,null,{"$f":"40/48","v":0.83333333333333337},"VIP",null,40,{"$f":"40/48","v":0.83333333333333337},"VIP",0.85416666666666663,40,{"$f":"40/60","v":0.66666666666666663},"VIP",0.68333333333333335]
[null,41,{"$f":"41/48","v":0.85416666666666663},"VIP",0.875,41,{"$f":"41/60","v":0.68333333333333335},"VIP",0.7,null,{"$f":"41/48","v":0.85416666666666663},"VIP",null,41,{"$f":"41/48","v":0.85416666666666663},"VIP",0.875,41,{"$f":"41/60","v":0.68333333333333335},"VIP",0.7]
[null,42,{"$f":"42/48","v":0.875},"VIP",0.89583333333333337,42,{"$f":"42/60","v":0.7},"VIP",0.71666666666666667,null,{"$f":"42/48","v":0.875},"VIP",null,42,{"$f":"42/48","v":0.875},"VIP",0.89583333333333337,42,{"$f":"42/60","v":0.7},"VIP",0.71666666666666667]
[null,43,{"$f":"43/48","v":0.89583333333333337},"VIP",0.91666666666666663,43,{"$f":"43/60","v":0.71666666666666667},"VIP",0.73333333333333328,null,{"$f":"43/48","v":0.89583333333333337},"VIP",null,43,{"$f":"43/48","v":0.89583333333333337},"VIP",0.91666666666666663,43,{"$f":"43/60","v":0.71666666666666667},"VIP",0.73333333333333328]
[null,44,{"$f":"44/48","v":0.91666666666666663},"VIP",0.9375,44,{"$f":"44/60","v":0.73333333333333328},"VIP",0.75,null,{"$f":"44/48","v":0.91666666666666663},"VIP",null,44,{"$f":"44/48","v":0.91666666666666663},"VIP",0.9375,44,{"$f":"44/60","v":0.73333333333333328},"VIP",0.75]
[null,45,{"$f":"45/48","v":0.9375},"VIP",0.95833333333333337,45,{"$f":"45/60","v":0.75},"VIP",0.76666666666666672,null,{"$f":"45/48","v":0.9375},"VIP",null,45,{"$f":"45/48","v":0.9375},"VIP",0.95833333333333337,45,{"$f":"45/60","v":0.75},"VIP",0.76666666666666672]
[null,46,{"$f":"46/48","v":0.95833333333333337},"VIP",0.97916666666666663,46,{"$f":"46/60","v":0.76666666666666672},"VIP",0.78333333333333333,null,{"$f":"46/48","v":0.95833333333333337},"VIP",null,46,{"$f":"46/48","v":0.95833333333333337},"VIP",0.97916666666666663,46,{"$f":"46/60","v":0.76666666666666672},"VIP",0.78333333333333333]
[null,47,{"$f":"47/48","v":0.97916666666666663},"VIP",1,47,{"$f":"47/60","v":0.78333333333333333},"VIP",0.8,null,{"$f":"47/48","v":0.97916666666666663},"VIP",null,47,{"$f":"47/48","v":0.97916666666666663},"VIP",1,47,{"$f":"47/60","v":0.78333333333333333},"VIP",0.8]
[null,48,{"$f":"48/48","v":1},"VIP",null,48,{"$f":"48/60","v":0.8},"VIP",0.81666666666666665,null,{"$f":"48/48","v":1},"VIP",null,48,{"$f":"48/48","v":1},"VIP",null,48,{"$f":"48/60","v":0.8},"VIP",0.81666666666666665]
[null,null,null,null,null,49,{"$f":"49/60","v":0.81666666666666665},"VIP",0.83333333333333337,null,null,null,null,null,null,null,null,49,{"$f":"49/60","v":0.81666666666666665},"VIP",0.83333333333333337]
[null,null,null,null,null,50,{"$f":"50/60","v":0.83333333333333337},"VIP",0.85,null,null,null,null,null,null,null,null,50,{"$f":"50/60","v":0.83333333333333337},"VIP",0.85]
[null,null,null,null,null,51,{"$f":"51/60","v":0.85},"VIP",0.8666666666666667,null,null,null,null,null,null,null,null,51,{"$f":"51/60","v":0.85},"VIP",0.8666666666666667]
[null,null,null,null,null,52,{"$f":"52/60","v":0.8666666666666667},"VIP",0.8833333333333333,null,null,null,null,null,null,null,null,52,{"$f":"52/60","v":0.8666666666666667},"VIP",0.8833333333333333]
[null,null,null,null,null,53,{"$f":"53/60","v":0.8833333333333333},"VIP",0.9,null,null,null,null,null,null,null,null,53,{"$f":"53/60","v":0.8833333333333333},"VIP",0.9]
[null,null,null,null,null,54,{"$f":"54/60","v":0.9},"VIP",0.91666666666666663,null,null,null,null,null,null,null,null,54,{"$f":"54/60","v":0.9},"VIP",0.91666666666666663]
[null,null,null,null,null,55,{"$f":"55/60","v":0.91666666666666663},"VIP",0.93333333333333335,null,null,null,null,null,null,null,null,55,{"$f":"55/60","v":0.91666666666666663},"VIP",0.93333333333333335]
[null,null,null,null,null,56,{"$f":"56/60","v":0.93333333333333335},"VIP",0.95,null,null,null,null,null,null,null,null,56,{"$f":"56/60","v":0.93333333333333335},"VIP",0.95]
[null,null,null,null,null,57,{"$f":"57/60","v":0.95},"VIP",0.96666666666666667,null,null,null,null,null,null,null,null,57,{"$f":"57/60","v":0.95},"VIP",0.96666666666666667]
[null,null,null,null,null,58,{"$f":"58/60","v":0.96666666666666667},"VIP",0.98333333333333328,null,null,null,null,null,null,null,null,58,{"$f":"58/60","v":0.96666666666666667},"VIP",0.98333333333333328]
[null,null,",t*+)KxHe\"z2sWN",null,null,59,{"$f":"59/60","v":0.98333333333333328},"VIP",1,null,null,null,null,null,null,null,null,59,{"$f":"59/60","v":0.98333333333333328},"VIP",1]
[null,null,null,null,null,60,{"$f":"60/60","v":1},"VIP",null,null,null,null,null,null,null,null,null,60,{"$f":"60/60","v":1},"VIP"]
[]
[]
[]
[]
[null,null,null,48,60,48,60]
[null,null,null,{"$f":"LOOKUP(I3-B35+B19,D74:D121,E74:E121)","v":0.47916666666666669},{"$f":"LOOKUP(I3-B35+B19,H74:H133,I74:I133)","v":0.45},{"$f":"LOOKUP(I3-B35+B19,P74:P121,Q74:Q121)","v":0.47916666666666669},{"$f":"LOOKUP(I3-B35+B19,T74:T133,U74:U133)","v":0.46666666666666667}]

{"sheet":"Hoja1","index":5,"n_rows":20,"n_cols":13,"rows_kept":20,"cut":false,"hidden":false,"merged":[]}
[]
[]
[]
[]
[]
[]
[]
[]
[]
[]
[]
[]
[]
[]
[]
[]
[]
[null,null,null,null,null,null,null,null,13500]
[null,null,null,null,null,null,null,null,6745,null,{"$f":"I18-I19","v":6755},null,{"$f":"K19/K20","v":1.2903533906399236}]
[null,null,null,null,null,null,null,null,null,null,5235]